bitfinex-derivatives/quotes_ETHF0:USTF0_20260223
["timestamp","ask_amount","ask_price","bid_price","bid_amount"]
[1771831968322,2.19680327,1878.5,1877.7,3.48459406]
[1771831977326,0.55649909,1878.4,1877.7,3.48459406]
[1771831977527,0.26623,1878.6,1877.9,1.81391796]
[1771831977832,0.00672401,1878.7,1878.0,3.48459406]
[1771831978126,0.55666129,1878.6,1878.0,3.48459406]
[1771831978335,0.00672401,1878.7,1878.0,3.48459406]
[1771831979338,0.82388684,1878.6,1878.0,3.48459406]
[1771831979535,0.26623,1878.6,1878.0,3.48459406]
[1771831980031,0.00672401,1878.7,1878.0,3.48459406]
[1771831980226,0.55834599,1878.6,1878.0,3.48459406]
[1771831980426,0.26618,1879.0,1878.1,3.48459406]
[1771831980727,6.96743496,1878.9,1878.1,3.48459406]
[1771831980927,0.26618,1879.0,1878.1,3.48459406]
[1771831981130,6.9676032,1878.9,1878.1,3.48459406]
[1771831981331,0.00432484,1878.9,1878.1,3.48459406]
[1771831989040,3.7817395,1878.9,1878.1,3.48459406]
[1771831990540,3.77741466,1878.6,1878.1,3.48459406]
[1771831992337,0.5540032,1878.5,1878.1,3.48459406]
[1771831992539,3.77741466,1878.6,1878.1,3.48459406]
[1771831992734,0.5540003,1878.5,1878.1,3.48459406]
[1771831992934,3.77741466,1878.6,1878.1,3.48459406]
[1771831993132,0.55400234,1878.5,1878.1,3.48459406]
[1771831993336,3.77741466,1878.6,1878.1,3.48459406]
[1771831993536,0.55399966,1878.5,1878.1,3.48459406]
[1771831993732,3.77741466,1878.6,1878.1,3.48459406]
[1771831993940,0.55420755,1878.5,1878.1,3.48459406]
[1771831994141,3.77741466,1878.6,1878.1,3.48459406]
[1771831994443,4.33161288,1878.5,1878.1,3.48459406]
[1771831994738,3.77741466,1878.8,1878.1,3.48459406]
[1771831995043,3.77741466,1878.6,1878.1,3.48459406]
[1771831995334,0.5541791,1878.5,1878.1,3.48459406]
[1771831995538,3.77741466,1878.6,1878.1,3.48459406]
[1771831995739,0.55417107,1878.5,1878.1,3.48459406]
[1771831995937,3.77741466,1878.6,1878.1,3.48459406]
[1771831996137,0.55421143,1878.5,1878.1,3.48459406]
[1771831996339,3.77741466,1878.6,1878.1,3.48459406]
[1771831996540,0.5542119,1878.5,1878.1,3.48459406]
[1771831996836,3.77741466,1878.6,1878.1,3.48459406]
[1771831997037,0.55421123,1878.5,1878.1,3.48459406]
[1771831997236,3.77741466,1878.6,1878.1,3.48459406]
[1771831997437,0.55421043,1878.5,1878.1,3.48459406]
[1771831997640,3.77741466,1878.6,1878.1,3.48459406]
[1771831997836,0.55418163,1878.5,1878.1,3.48459406]
[1771831998037,3.77741466,1878.6,1878.1,3.48459406]
[1771831998239,0.55416882,1878.5,1878.1,3.48459406]
[1771831998437,3.77741466,1878.6,1878.1,3.48459406]
[1771831998638,0.55419672,1878.5,1878.1,3.48459406]
[1771831998836,3.77741466,1878.6,1878.1,3.48459406]
[1771831999035,0.55422019,1878.5,1878.1,3.48459406]
[1771831999238,3.77741466,1878.6,1878.1,3.48459406]
[1771831999536,0.55425566,1878.5,1878.1,3.48459406]
[1771831999733,3.77741466,1878.6,1878.1,3.48459406]
[1771831999937,0.55426673,1878.5,1878.1,3.48459406]
[1771832000138,3.77741466,1878.6,1878.1,3.48459406]
[1771832000340,4.07198478,1878.5,1878.1,3.48459406]
[1771832000541,3.51770536,1878.5,1878.1,3.48459406]
[1771832001441,4.07197569,1878.4,1878.1,3.48459406]
[1771832001641,3.51770536,1878.4,1878.1,3.48459406]
[1771832002034,3.51770536,1878.4,1878.0,3.28593755]
[1771832002843,3.51770536,1878.2,1877.8,3.28593755]
[1771832003042,0.55393,1878.3,1877.6,3.28593755]
[1771832003043,3.51770536,1878.0,1877.6,3.28593755]
[1771832004840,3.51770536,1878.1,1877.6,3.28593755]
[1771832005045,0.5533853,1878.0,1877.6,3.28593755]
[1771832005239,3.51770536,1878.4,1877.6,3.28593755]
[1771832010746,3.51770536,1878.5,1877.6,3.28593755]
[1771832011050,0.26624,1878.6,1877.6,3.28593755]
[1771832011244,3.78394536,1878.6,1877.9,3.28593755]
[1771832013950,3.78394536,1878.6,1877.7,3.28593755]
[1771832013951,1.81391796,1878.4,1877.7,3.28593755]
[1771832014152,3.51770536,1878.3,1877.7,3.28593755]
[1771832016256,3.51770536,1878.5,1877.7,3.28593755]
[1771832020265,4.06784403,1878.4,1877.7,3.28593755]
[1771832020458,4.06775582,1878.3,1877.7,3.28593755]
[1771832020665,3.51770536,1878.3,1877.7,3.28593755]
[1771832021965,3.51770536,1878.6,1877.7,3.28593755]
[1771832022164,3.51770536,1878.4,1877.7,3.28593755]
[1771832022364,0.55008755,1878.3,1877.7,3.28593755]
[1771832022568,3.51770536,1878.4,1877.7,3.28593755]
[1771832022867,0.55009625,1878.3,1877.7,3.28593755]
[1771832023059,3.51770536,1878.4,1877.7,3.28593755]
[1771832023258,0.55005822,1878.3,1877.8,3.28593755]
[1771832023467,3.51770536,1878.4,1877.8,3.28593755]
[1771832023667,0.55007842,1878.3,1877.8,3.28593755]
[1771832023867,3.51770536,1878.4,1877.8,3.28593755]
[1771832024068,0.55007744,1878.3,1877.8,3.28593755]
[1771832024268,3.51770536,1878.4,1877.8,3.28593755]
[1771832024468,0.55009939,1878.3,1877.8,3.28593755]
[1771832024666,3.51770536,1878.4,1877.8,3.28593755]
[1771832024863,0.55009931,1878.3,1877.8,3.28593755]
[1771832025069,3.51770536,1878.3,1877.8,3.28593755]
[1771832025264,1.81457095,1878.6,1877.8,3.28593755]
[1771832025470,3.51770536,1878.4,1877.8,3.28593755]
[1771832025671,0.55012518,1878.3,1877.8,3.28593755]
[1771832025868,3.51770536,1878.4,1877.8,3.28593755]
[1771832026067,0.55012639,1878.3,1877.8,3.28593755]
[1771832026263,3.51770536,1878.4,1877.7,3.28593755]
[1771832026472,4.06786055,1878.3,1877.7,3.28593755]
[1771832026666,4.06786055,1878.2,1877.7,3.28593755]
[1771832026866,3.51770536,1878.2,1877.7,3.28593755]
[1771832035478,3.53373863,1878.1,1877.7,3.28593755]
[1771832035678,2.98294184,1878.1,1877.7,3.28593755]
[1771832036576,2.98294184,1877.8,1877.5,0.00466712]
[1771832036877,2.98294184,1877.8,1877.1,2.97103102]
[1771832037276,2.98294184,1877.8,1877.2,1.81457095]
[1771832037477,2.98294184,1877.8,1877.3,2.97103102]
[1771832037678,2.98294184,1877.9,1877.3,2.97752259]
[1771832037879,0.55025863,1877.8,1877.3,2.97752259]
[1771832038181,2.98294184,1878.0,1877.4,1.81457095]
[1771832038377,2.98294184,1878.0,1877.5,2.97103102]
[1771832040885,2.98294184,1878.3,1877.7,2.97103102]
[1771832041088,3.53274188,1878.2,1877.7,2.97103102]
[1771832041383,3.53274188,1878.1,1877.7,2.97103102]
[1771832041685,2.98294184,1878.1,1877.7,2.97103102]
[1771832043481,1.81457095,1878.5,1877.7,2.97103102]
[1771832043687,2.98294184,1878.2,1877.7,2.97103102]
[1771832043884,0.54989163,1878.1,1877.7,2.97103102]
[1771832044081,2.98294184,1878.2,1877.7,2.97103102]
[1771832044286,0.5498966,1878.1,1877.7,2.97103102]
[1771832044485,2.98294184,1878.3,1877.9,2.97103102]
[1771832046594,0.55001056,1878.2,1877.9,2.97103102]
[1771832046891,2.98294184,1878.4,1877.9,2.97103102]
[1771832047092,3.53303705,1878.3,1877.9,2.97103102]
[1771832047394,3.53303705,1878.2,1877.9,2.97103102]
[1771832047690,2.98294184,1878.2,1877.9,2.97103102]
[1771832047886,2.98294184,1878.4,1877.9,2.97103102]
[1771832048093,3.53309288,1878.3,1877.9,2.97103102]
[1771832048292,0.55015104,1878.2,1877.9,2.97103102]
[1771832048493,2.98294184,1878.5,1877.9,2.97103102]
[1771832048791,0.55029165,1878.4,1878.1,2.97103102]
[1771832048988,2.98294184,1878.5,1878.1,2.97103102]
[1771832049193,3.53342046,1878.4,1878.1,2.97103102]
[1771832049389,2.98294184,1878.4,1878.1,2.97103102]
[1771832050095,0.55039307,1878.3,1878.1,2.97103102]
[1771832050291,2.98294184,1878.4,1878.1,2.97103102]
[1771832050489,0.55040686,1878.3,1878.1,2.97103102]
[1771832050689,2.98294184,1878.4,1878.1,2.97103102]
[1771832050891,0.55064962,1878.3,1878.1,2.97103102]
[1771832051092,2.98294184,1878.4,1878.1,2.97103102]
[1771832051295,0.55068041,1878.3,1878.1,2.97103102]
[1771832051498,2.98294184,1878.6,1878.1,2.97103102]
[1771832054297,2.98294184,1878.6,1877.9,2.97103102]
[1771832056596,2.85429979,1878.4,1877.9,2.97103102]
[1771832063408,3.38433105,1878.3,1877.9,2.97103102]
[1771832063610,2.83786521,1878.3,1877.9,2.97103102]
[1771832064504,2.83786521,1878.3,1877.8,2.61441067]
[1771832072310,3.38509373,1878.2,1877.8,2.61441067]
[1771832072512,2.83786521,1878.2,1877.8,2.61441067]
[1771832079615,2.83786521,1878.2,1877.4,5.67557095]
[1771832079817,2.83786521,1878.0,1877.5,2.61441067]
[1771832082624,2.83786521,1878.2,1877.7,2.61441067]
[1771832082923,2.83786521,1878.4,1877.7,2.61441067]
[1771832083318,2.83786521,1878.7,1878.1,2.61441067]
[1771832083523,2.83786521,1878.5,1878.1,2.61441067]
[1771832083920,2.83786521,1878.5,1877.9,2.61441067]
[1771832085523,7.29747472,1878.8,1877.9,2.61441067]
[1771832085728,0.00432484,1878.9,1878.2,2.61441067]
[1771832085929,2.84219005,1878.9,1878.2,2.61441067]
[1771832086226,7.29747472,1879.2,1878.2,2.61441067]
[1771832086529,2.83786521,1879.5,1878.8,2.61441067]
[1771832087028,2.83786521,1879.7,1878.8,2.61441067]
[1771832087231,2.84346127,1879.7,1878.8,2.62012396]
[1771832088422,2.41150974,1879.9,1879.1,2.52480643]
[1771832089125,2.41150974,1880.5,1879.7,2.52480643]
[1771832089630,0.00444184,1880.5,1879.7,2.52480643]
[1771832092425,0.0925607,1881.2,1879.7,2.52480643]
[1771832092426,2.41150974,1880.8,1879.7,2.52480643]
[1771832092631,2.41150974,1881.2,1880.1,2.52480643]
[1771832092822,1.65477638,1882.1,1880.1,2.52480643]
[1771832092823,2.41150974,1882.0,1880.5,2.52480643]
[1771832093629,2.415938,1882.0,1880.5,2.5289076]
[1771832094232,2.415938,1882.0,1880.9,2.52480643]
[1771832096527,0.00442826,1882.0,1881.1,2.52480643]
[1771832096931,2.415938,1882.0,1881.1,2.52480643]
[1771832101244,2.41150974,1882.8,1881.7,2.52480643]
[1771832101434,2.41150974,1882.8,1881.9,2.52480643]
[1771832101639,2.41150974,1882.8,1881.6,6.53892]
[1771832101640,2.41150974,1882.8,1882.1,2.52480643]
[1771832102038,2.41656763,1882.8,1882.1,2.53139846]
[1771832102439,0.00505789,1882.8,1882.1,2.53139846]
[1771832102633,2.41150974,1883.4,1882.2,0.26572]
[1771832102841,2.41150974,1883.2,1882.1,2.53139846]
[1771832103234,2.41150974,1883.2,1882.1,0.00659203]
[1771832103434,2.41150974,1883.2,1881.7,2.52480643]
[1771832103641,0.26559,1883.1,1881.7,2.52480643]
[1771832103939,2.41150974,1883.0,1881.5,2.52480643]
[1771832104537,2.41642284,1883.0,1881.5,2.52933742]
[1771832105846,2.41150974,1882.8,1881.5,0.00453099]
[1771832107344,2.41150974,1882.8,1881.5,2.52933742]
[1771832118453,0.0049131,1883.0,1882.2,2.26095935]
[1771832119258,2.10916545,1883.4,1882.2,2.26095935]
[1771832120353,2.11301492,1883.4,1882.2,2.26095935]
[1771832121355,2.10916545,1883.2,1882.2,2.26095935]
[1771832122261,2.11301492,1883.4,1882.4,2.26095935]
[1771832123261,2.10916545,1883.2,1881.8,2.52672935]
[1771832123461,2.10916545,1883.0,1881.8,2.52672935]
[1771832123661,2.10916545,1882.8,1881.8,2.52672935]
[1771832126562,2.10916545,1882.8,1881.8,2.26095935]
[1771832126762,2.10916545,1882.6,1881.8,2.26095935]
[1771832131264,0.00384947,1883.4,1882.9,0.26562]
[1771832131466,2.19626136,1883.9,1882.4,0.26569]
[1771832131767,2.19626136,1883.7,1882.4,0.26569]
[1771832131969,2.19626136,1883.7,1882.8,0.26563]
[1771832132370,2.20054484,1883.7,1882.8,0.27001893]
[1771832132972,2.20054484,1883.7,1882.9,0.28534571]
[1771832133666,2.20054484,1883.7,1882.8,0.61962034]
[1771832134065,2.16581468,1883.5,1882.8,0.00438893]
[1771832134768,0.00428348,1883.7,1883.0,0.33141293]
[1771832134970,2.16668566,1884.1,1883.0,0.33141293]
[1771832135268,2.16668566,1884.1,1883.2,0.31333404]
[1771832135468,2.16668566,1883.9,1882.9,0.31333404]
[1771832135968,2.17094626,1883.9,1882.9,0.31333404]
[1771832137575,2.17094626,1883.9,1883.1,0.34078591]
[1771832141380,2.17094626,1883.9,1882.9,0.40461815]
[1771832141581,2.15454975,1883.7,1882.8,0.00438893]
[1771832142170,2.15454975,1883.7,1882.8,0.42643893]
[1771832144582,2.15454975,1883.7,1882.8,0.00438893]
[1771832146282,2.15454975,1883.7,1882.8,0.50848792]
[1771832154187,2.15454975,1883.7,1882.8,0.00438893]
[1771832155290,2.15454975,1883.7,1882.8,0.72818106]
[1771832159381,2.32672127,1883.5,1882.8,0.72818106]
[1771832166585,2.32672127,1883.5,1882.8,0.00438893]
[1771832166791,2.32672127,1883.3,1882.6,0.88043968]
[1771832166994,2.32672127,1883.1,1882.1,0.8891175]
[1771832167491,2.32672127,1882.9,1882.1,0.8891175]
[1771832167887,2.32672127,1882.9,1882.1,0.89405061]
[1771832172388,2.32672127,1882.9,1882.1,0.00493311]
[1771832174489,0.54310793,1882.8,1882.1,0.00493311]
[1771832174794,2.32672127,1882.7,1881.8,0.9158203]
[1771832175691,2.32672127,1882.7,1881.8,0.92096635]
[1771832178497,2.32672127,1882.7,1881.8,0.00514605]
[1771832183298,2.55367475,1882.5,1881.8,0.00514605]
[1771832183501,2.55834251,1882.5,1881.8,0.00514605]
[1771832184497,2.55834251,1882.5,1881.8,1.31723756]
[1771832198419,2.55834251,1882.5,1881.8,0.00514605]
[1771832198621,2.55367475,1882.3,1881.6,1.37177776]
[1771832199618,2.55367475,1882.3,1881.3,1.35891851]
[1771832200317,2.55367475,1882.1,1881.3,1.35891851]
[1771832201020,2.55367475,1882.1,1881.2,1.33652968]
[1771832201318,2.55367475,1881.9,1881.2,1.33652968]
[1771832201521,2.55367475,1881.7,1881.2,1.33652968]
[1771832203120,2.55367475,1881.9,1881.2,1.33652968]
[1771832221646,2.50283837,1882.4,1881.2,1.33652968]
[1771832221847,2.50283837,1882.2,1881.2,1.33652968]
[1771832222249,2.50283837,1882.4,1881.4,2.56488708]
[1771832222450,0.00466776,1882.5,1881.4,2.56488708]
[1771832222451,3.04635803,1882.3,1881.4,2.56488708]
[1771832222647,2.50283837,1882.3,1881.4,2.56488708]
[1771832223245,2.50750613,1882.5,1881.4,2.56488708]
[1771832223452,2.50283837,1882.3,1881.4,2.56488708]
[1771832223947,2.50283837,1883.0,1882.2,2.56488708]
[1771832224148,2.50283837,1883.3,1882.4,2.56488708]
[1771832224350,2.13916556,1883.6,1882.4,2.56488708]
[1771832224946,2.14507381,1883.6,1882.4,2.56488708]
[1771832225350,2.14507381,1883.6,1882.6,2.56488708]
[1771832225547,2.14507381,1883.6,1882.6,2.57134734]
[1771832228554,2.14507381,1883.6,1882.8,2.56488708]
[1771832241768,0.37961173,1883.4,1882.8,2.56488708]
[1771832245466,0.37961173,1883.4,1882.7,1.85564915]
[1771832249867,0.00590825,1883.6,1882.7,1.85564915]
[1771832251470,0.53869902,1883.5,1882.7,1.85564915]
[1771832251669,0.00590825,1883.6,1882.7,1.85564915]
[1771832251872,0.53869902,1883.5,1882.7,1.85564915]
[1771832252070,0.00590825,1883.6,1882.7,1.85564915]
[1771832252273,0.53869885,1883.5,1882.7,1.85564915]
[1771832252472,0.53869885,1883.4,1882.7,1.85564915]
[1771832252664,0.00590825,1883.6,1882.7,1.85564915]
[1771832252868,0.53939599,1883.5,1882.7,1.85564915]
[1771832253068,0.53939599,1883.4,1882.7,1.85564915]
[1771832253272,0.54053148,1883.3,1882.7,1.85564915]
[1771832253465,0.00590825,1883.6,1882.7,1.85564915]
[1771832253667,7.22438187,1883.5,1882.7,1.85564915]
[1771832253864,0.54053518,1883.4,1882.7,1.85564915]
[1771832254068,0.54053518,1883.3,1882.7,1.85564915]
[1771832254267,0.00590825,1883.6,1882.7,1.85564915]
[1771832254465,7.22428243,1883.5,1882.7,1.85564915]
[1771832254668,0.54052594,1883.4,1882.7,1.85564915]
[1771832254869,0.54052594,1883.3,1882.7,1.85564915]
[1771832255073,7.22531564,1883.2,1882.7,1.85564915]
[1771832255275,0.54052594,1883.1,1882.7,1.85564915]
[1771832255476,0.54052594,1883.0,1882.7,1.85564915]
[1771832255673,4.71328286,1883.5,1882.7,1.85564915]
[1771832255874,7.22249372,1883.4,1882.7,1.85564915]
[1771832256075,7.22249372,1883.3,1882.7,1.85564915]
[1771832256274,7.22249372,1883.2,1882.7,1.85564915]
[1771832256574,0.54029444,1883.1,1882.7,1.85564915]
[1771832256777,0.54029444,1883.0,1882.7,1.85564915]
[1771832257081,0.26554,1883.5,1882.7,1.85564915]
[1771832257276,7.22064899,1883.4,1882.7,1.85564915]
[1771832257578,7.22064899,1883.3,1882.7,1.85564915]
[1771832257873,0.54015871,1883.2,1882.7,1.85564915]
[1771832258076,0.54015871,1883.1,1882.7,1.85564915]
[1771832258379,0.54015871,1883.0,1882.7,1.85564915]
[1771832258679,0.26554,1883.5,1882.7,1.85564915]
[1771832258874,7.21747464,1883.4,1882.7,1.85564915]
[1771832259081,7.21747464,1883.3,1882.7,1.85564915]
[1771832259282,0.53992222,1883.2,1882.7,1.85564915]
[1771832259474,0.53992222,1883.1,1882.7,1.85564915]
[1771832259779,4.45365111,1883.6,1882.7,1.85564915]
[1771832259980,7.21618485,1883.5,1882.7,1.85564915]
[1771832260278,7.21618485,1883.4,1882.7,1.85564915]
[1771832260480,7.21618485,1883.3,1882.7,1.85564915]
[1771832260780,0.53985829,1883.2,1882.7,1.85564915]
[1771832260978,0.53985829,1883.1,1882.7,1.85564915]
[1771832261177,4.45365111,1883.6,1882.7,1.85564915]
[1771832261480,7.21548511,1883.5,1882.7,1.85564915]
[1771832261675,7.21548511,1883.4,1882.7,1.85564915]
[1771832261880,7.21548511,1883.3,1882.7,1.85564915]
[1771832262077,0.53985565,1883.2,1882.6,1.86210941]
[1771832262281,0.53985565,1883.1,1882.6,1.86210941]
[1771832262476,0.53985565,1883.0,1882.5,1.31613287]
[1771832262678,4.44774286,1883.4,1882.4,1.85564915]
[1771832262679,0.53985565,1882.9,1882.4,1.85564915]
[1771832262983,0.53985565,1882.8,1881.5,1.85564915]
[1771832263178,0.53985565,1882.7,1881.5,1.85564915]
[1771832263379,4.44774286,1883.2,1881.5,1.85564915]
[1771832263582,7.21348677,1883.1,1881.5,1.86073852]
[1771832263782,7.21348677,1883.0,1881.5,1.86073852]
[1771832263981,7.21348677,1882.9,1881.5,1.86073852]
[1771832264181,0.53955085,1882.8,1881.5,1.86073852]
[1771832264389,0.53955085,1882.7,1881.5,1.86073852]
[1771832264583,4.44774286,1883.2,1881.5,1.86073852]
[1771832264782,7.21079615,1883.1,1881.5,1.86073852]
[1771832264978,7.21079615,1883.0,1881.5,1.86073852]
[1771832265178,7.21079615,1882.9,1881.5,1.86073852]
[1771832265387,0.53934821,1882.8,1881.5,1.86073852]
[1771832265588,0.53934821,1882.7,1881.5,1.86073852]
[1771832265788,4.44774286,1883.2,1881.5,1.86073852]
[1771832265990,7.20863179,1883.1,1881.5,1.86073852]
[1771832266185,7.20863179,1883.0,1881.5,1.86073852]
[1771832266488,7.20863179,1882.9,1881.5,1.86073852]
[1771832266689,0.53918801,1882.8,1881.5,1.86073852]
[1771832266890,0.53918801,1882.7,1881.5,1.86073852]
[1771832267186,0.53905931,1882.6,1881.5,1.86073852]
[1771832267387,0.26563,1882.9,1881.5,1.86073852]
[1771832267388,0.53905931,1882.5,1881.5,1.86073852]
[1771832267591,0.26563,1882.9,1881.5,1.86073852]
[1771832267790,7.20413532,1882.8,1881.5,1.86073852]
[1771832267989,0.5388144,1882.7,1881.5,1.86073852]
[1771832268289,0.5388144,1882.6,1881.5,1.86073852]
[1771832268484,0.26563,1882.9,1881.5,1.86073852]
[1771832268685,7.20230342,1882.8,1881.5,1.86073852]
[1771832268987,0.53867929,1882.7,1881.5,1.86073852]
[1771832269187,0.53867929,1882.6,1881.5,1.86073852]
[1771832269390,0.26563,1882.9,1881.5,1.86073852]
[1771832269583,0.53858574,1882.8,1881.5,1.86073852]
[1771832269789,0.53858574,1882.7,1881.5,1.86073852]
[1771832269989,0.53858574,1882.6,1881.5,1.86073852]
[1771832270193,0.26563,1882.9,1881.5,1.86073852]
[1771832270488,0.53848974,1882.8,1881.5,1.86073852]
[1771832270689,0.53848974,1882.7,1881.5,1.86073852]
[1771832270890,0.26563,1882.9,1881.5,1.86073852]
[1771832271085,0.53852239,1882.8,1881.5,1.86073852]
[1771832271290,0.53852239,1882.7,1881.7,1.18734198]
[1771832271595,0.26557,1883.3,1882.0,1.18734198]
[1771832271789,0.53850575,1883.2,1882.3,1.18734198]
[1771832271993,0.53850575,1883.1,1882.3,1.18734198]
[1771832272193,0.26556,1883.4,1882.3,1.18734198]
[1771832272393,7.19947751,1883.3,1882.3,1.18734198]
[1771832272586,0.53851459,1883.2,1882.3,1.18734198]
[1771832272792,0.53851459,1883.1,1882.3,1.18734198]
[1771832272992,0.26556,1883.4,1882.3,1.18734198]
[1771832273195,7.19957462,1883.3,1882.3,1.18734198]
[1771832273492,0.53859666,1883.2,1882.3,1.18734198]
[1771832273691,0.53859666,1883.1,1882.3,1.18734198]
[1771832273893,0.53859666,1883.0,1882.3,1.18734198]
[1771832274196,0.26556,1883.4,1882.3,1.18734198]
[1771832274396,7.20220732,1883.3,1882.3,1.18734198]
[1771832274597,0.53869345,1883.2,1882.3,1.18734198]
[1771832274796,0.53869345,1883.1,1882.3,1.18734198]
[1771832274997,0.53869345,1883.0,1882.3,1.18734198]
[1771832275191,0.26556,1883.4,1882.3,1.18734198]
[1771832275391,7.20304346,1883.3,1882.3,1.18734198]
[1771832275591,0.53880601,1883.2,1882.3,1.18734198]
[1771832275798,0.53880601,1883.1,1882.3,1.18734198]
[1771832275998,0.53880601,1883.0,1882.3,1.18734198]
[1771832276194,0.26556,1883.4,1882.3,1.18734198]
[1771832276394,7.20383631,1883.3,1882.3,1.18734198]
[1771832276689,0.53886638,1883.2,1882.3,1.18734198]
[1771832276893,0.53886638,1883.1,1882.3,1.18734198]
[1771832277095,0.53886638,1883.0,1882.3,1.18734198]
[1771832277394,0.26556,1883.4,1882.3,1.18734198]
[1771832277596,7.20479712,1883.3,1882.3,1.18734198]
[1771832277798,0.53899629,1883.2,1882.3,1.18734198]
[1771832278093,0.53899629,1883.1,1882.3,1.18734198]
[1771832278298,0.53899629,1883.0,1882.3,1.18734198]
[1771832278499,0.26556,1883.4,1882.3,1.18734198]
[1771832278694,7.20555964,1883.3,1882.3,1.18734198]
[1771832278895,0.5390796,1883.2,1882.3,1.18734198]
[1771832279095,0.5390796,1883.1,1882.3,1.18734198]
[1771832279299,0.5390796,1883.0,1882.3,1.18734198]
[1771832279496,0.26556,1883.4,1882.3,1.18734198]
[1771832279699,7.20702712,1883.3,1882.3,1.18734198]
[1771832279900,7.20702712,1883.2,1882.3,1.18734198]
[1771832280201,0.53915912,1883.1,1882.3,1.18734198]
[1771832280400,0.53915912,1883.0,1882.3,1.18734198]
[1771832280599,0.26556,1883.4,1882.3,1.18734198]
[1771832280800,7.2088712,1883.3,1882.3,1.18734198]
[1771832281001,7.2088712,1883.2,1882.3,1.18734198]
[1771832281299,0.53927931,1883.1,1882.4,1.18611135]
[1771832281502,1.80572228,1883.2,1882.4,1.18611135]
[1771832281503,0.53927931,1883.0,1882.4,1.18611135]
[1771832281698,0.53927931,1882.9,1882.4,1.18611135]
[1771832281900,1.80572228,1883.2,1882.4,1.18611135]
[1771832282104,0.539392,1883.1,1882.4,1.18611135]
[1771832282306,0.539392,1883.0,1882.4,1.18611135]
[1771832282506,0.539392,1882.9,1882.4,1.18611135]
[1771832282708,1.80572228,1883.2,1882.4,1.18611135]
[1771832282909,0.53951701,1883.1,1882.4,1.18611135]
[1771832283108,0.53951701,1883.0,1882.4,1.18611135]
[1771832283305,0.53951701,1882.9,1882.4,1.18611135]
[1771832283605,1.80572228,1883.2,1882.4,1.18611135]
[1771832283806,7.21398447,1883.1,1882.4,1.18611135]
[1771832284107,0.53966083,1883.0,1882.4,1.18611135]
[1771832284307,0.53966083,1882.9,1882.4,1.18611135]
[1771832284509,1.80572228,1883.2,1882.4,1.18611135]
[1771832284711,7.21637273,1883.1,1882.4,1.18611135]
[1771832285013,0.53983986,1883.0,1882.4,1.18611135]
[1771832285211,0.53983986,1882.9,1882.4,1.18611135]
[1771832285412,1.80572228,1883.2,1882.4,1.18611135]
[1771832285711,7.21682717,1883.1,1882.4,1.18611135]
[1771832285907,0.53987386,1883.0,1882.4,1.18611135]
[1771832286106,0.53987386,1882.9,1882.4,1.18611135]
[1771832286307,1.80572228,1883.2,1882.4,1.18611135]
[1771832286508,7.21731152,1883.1,1882.4,1.18611135]
[1771832286812,0.53991016,1883.0,1882.4,1.18611135]
[1771832287013,0.53991016,1882.9,1882.4,1.18611135]
[1771832287212,1.80572228,1883.2,1882.4,1.18611135]
[1771832287513,7.21783324,1883.1,1882.4,1.18611135]
[1771832287813,0.53994933,1883.0,1882.4,1.18611135]
[1771832288010,0.53994933,1882.9,1882.4,1.18611135]
[1771832288311,1.80572228,1883.2,1882.4,1.18611135]
[1771832288509,7.21837886,1883.1,1882.4,1.18611135]
[1771832288711,0.53999026,1883.0,1882.4,1.18611135]
[1771832288910,0.53999026,1882.9,1882.4,1.18611135]
[1771832289112,1.80572228,1883.2,1882.4,1.18611135]
[1771832289412,7.21868528,1883.1,1882.4,1.18611135]
[1771832289612,0.53999012,1883.0,1882.4,1.18611135]
[1771832289808,0.53999012,1882.9,1882.4,1.18611135]
[1771832290009,1.80572228,1883.2,1882.4,1.18611135]
[1771832290208,7.22425038,1883.1,1882.4,1.18611135]
[1771832290414,0.54003043,1883.0,1882.4,1.18611135]
[1771832290608,0.54003043,1882.9,1882.4,1.18611135]
[1771832290808,1.80572228,1883.2,1882.4,1.18611135]
[1771832291008,7.22535093,1883.1,1882.4,1.18611135]
[1771832291209,0.54011285,1883.0,1882.4,1.18611135]
[1771832291509,0.54011285,1882.9,1882.4,1.18611135]
[1771832291811,0.54011285,1882.8,1882.4,1.18611135]
[1771832292013,1.80572228,1883.2,1882.4,1.18611135]
[1771832292311,7.22659867,1883.1,1882.4,1.18611135]
[1771832292509,0.54020486,1883.0,1882.5,1.18196066]
[1771832292709,0.54020486,1882.9,1882.5,1.18196066]
[1771832292903,6.51902514,1883.4,1882.7,1.18196066]
[1771832293102,7.22700898,1883.3,1882.7,1.18196066]
[1771832293306,7.22700898,1883.2,1882.7,1.18196066]
[1771832293508,0.54025966,1883.1,1882.7,1.18196066]
[1771832293702,0.54025966,1883.0,1882.7,1.18196066]
[1771832293915,2.07128228,1883.4,1882.7,1.18196066]
[1771832294112,7.22685137,1883.3,1882.7,1.18196066]
[1771832294311,7.22685137,1883.2,1882.7,1.18196066]
[1771832294512,0.5402637,1883.1,1882.7,1.18196066]
[1771832294712,0.5402637,1883.0,1882.7,1.18196066]
[1771832295010,2.07128228,1883.4,1882.7,1.18196066]
[1771832295217,7.22648423,1883.3,1882.7,1.18196066]
[1771832295412,7.22648423,1883.2,1882.7,1.18196066]
[1771832295612,0.54023619,1883.1,1882.7,1.18196066]
[1771832295816,0.26556,1883.4,1882.7,1.18196066]
[1771832296012,7.22599204,1883.3,1882.7,1.18196066]
[1771832296313,6.25937339,1883.6,1882.9,1.18007963]
[1771832296518,7.22532053,1883.5,1882.9,1.18564462]
[1771832296812,0.54018467,1883.4,1882.9,1.18564462]
[1771832297016,0.54018467,1883.3,1882.9,1.18564462]
[1771832297316,0.00590825,1883.6,1882.9,1.18564462]
[1771832297511,0.5401371,1883.5,1882.9,1.18564462]
[1771832297711,0.5401371,1883.4,1882.9,1.18564462]
[1771832297912,0.5401371,1883.3,1882.9,1.18564462]
[1771832298110,0.00590825,1883.6,1882.9,1.18564462]
[1771832298313,0.5401371,1883.5,1882.9,1.18564462]
[1771832298510,0.5401371,1883.4,1882.9,1.18564462]
[1771832298715,0.5401371,1883.3,1882.9,1.18564462]
[1771832298913,0.00590825,1883.6,1882.9,1.18564462]
[1771832299115,0.54007331,1883.5,1882.9,1.18564462]
[1771832299315,0.54007331,1883.4,1882.9,1.18564462]
[1771832299516,0.54007331,1883.3,1882.9,1.18564462]
[1771832299713,0.00590825,1883.6,1882.9,1.18564462]
[1771832299915,0.54004622,1883.5,1882.9,1.18564462]
[1771832300218,0.54004622,1883.4,1882.9,1.18564462]
[1771832300420,0.54004622,1883.3,1882.9,1.18564462]
[1771832300619,0.00590825,1883.6,1882.9,1.18564462]
[1771832300820,0.54005716,1883.5,1882.9,1.18564462]
[1771832301020,0.54005716,1883.4,1882.9,1.18564462]
[1771832301215,0.54005716,1883.3,1882.9,1.18564462]
[1771832301417,0.00590825,1883.6,1882.9,1.18564462]
[1771832301616,0.54010808,1883.5,1882.9,1.18564462]
[1771832301815,0.54010808,1883.4,1882.9,1.18564462]
[1771832302020,0.54010808,1883.3,1882.9,1.18564462]
[1771832302216,0.00590825,1883.6,1882.9,1.18564462]
[1771832302521,0.54001313,1883.5,1882.9,1.18564462]
[1771832302716,0.54001313,1883.4,1882.9,1.18564462]
[1771832302917,0.54001313,1883.3,1882.9,1.18564462]